Cogmind - Beta 13 @@@ ROGUE MODE // 2024.04.16 @ 11:15:24 Player: Olafz Result: Destroyed by P-70 Sage with High-powered Shock Rifle Performance ------------- Evolutions (6) 3000 Regions Visited (14) 2800 Robots Destroyed (72) 360 Value Destroyed (2438) 2438 Prototype IDs (16) 320 Alien Tech Used (0) 0 Bonus (1300) 1300 TOTAL SCORE: 10218 Bonus ------- High Alert Combat Kills 8 Follower Combat Kills 292 Met Warlord at Base 500 MAIN.C Attacked Warlord 500 Cogmind --------- Core Integrity 0/1150 Matter 258/300 Energy 42/100 System Corruption 4% Temperature Cool (2) Movement Hovering (70) Location -4/Factory Parts ------- > --- POWER (2) -------- (None) > --- PROPULSION (6) --- Improved Gyrokinetic Inverter > --- UTILITY (9) ------ Makeshift Hacking Suite Improved Hacking Suite > --- WEAPON (2) ------- (None) > --- INVENTORY (5) ---- Improved Flight Unit Improved Focal Shield Makeshift Sword Heavy Pick Heavy Pick Peak State ------------ > --- POWER ------------ Light Angular Momentum Engine Micro Fission Core > --- PROPULSION ------- Linear Gravjet Linear Gravjet Improved Gyrokinetic Inverter Improved Gyrokinetic Inverter Improved Flight Unit Impulse Thruster > --- UTILITY ---------- Advanced Power Amplifier Medium Storage Unit Advanced Signal Interpreter Microactuators Advanced Thermal Shield Makeshift Hacking Suite Makeshift Hacking Suite Improved Hacking Suite Improved Corruption Screen > --- WEAPON ----------- Makeshift Sword Heavy Pick > --- INVENTORY -------- Improved Flight Unit Advanced Cryofiber Web Improved Actuator Array Improved Focal Shield Vortex Cannon Heavy Pick Heavy Pick [Rating: 102] Favorites ----------- Power Improved Ion Engine Engine Improved Ion Engine Power Core Fission Core Reactor Cold Fusion Reactor Propulsion Improved Aluminum Leg Treads Medium Treads Leg Improved Aluminum Leg Hover Unit Improved Gyrokinetic Inverter Flight Unit Improved Flight Unit Utility Large Storage Unit Device Improved Heat Sink Storage Large Storage Unit Processor Advanced Signal Interpreter Hackware Improved Hacking Suite Protection Hardened Light Armor Plating Weapon Improved Light Cannon Energy Gun Improved Medium Laser Energy Cannon Vortex Cannon Ballistic Gun Autogun Ballistic Cannon Improved Light Cannon Launcher Proton Missile Launcher Special Weapon Improved Remote Datajack Impact Weapon Mace Slashing Weapon Makeshift Sword Piercing Weapon Heavy Pick Build | -11 -10 -9 -9 -9 -7 -6 -6 -6 -5 -5 -5 -5 -4 -4 ------- Run | Yrd Mat Mat Sto Rec Fac Fac Low Low Fac Upp Upp War Pro Fac Slots Evolved 12 | . . 2 . . 4 2 . . 2 . . . . 2 Power 1 | . . . . . 1 . . . . . . . . . Propulsion 4 | . . 2 . . . . . . 2 . . . . . Utility 7 | . . . . . 3 2 . . . . . . . 2 Weapon . | . . . . . . . . . . . . . . . Parts Attached 168 | . 17 9 21 1 18 21 15 3 23 2 . 16 1 21 Power 33 | . 1 2 7 1 3 5 4 1 3 . . 4 . 2 Engine 20 | . . 2 7 1 . 3 3 . . . . 3 . 1 Core 10 | . 1 . . . 2 1 1 1 3 . . . . 1 Reactor 3 | . . . . . 1 1 . . . . . 1 . . Propulsion 55 | . 7 3 9 . 5 5 6 1 9 . . 1 . 9 Treads 1 | . . . . . . . 1 . . . . . . . Leg 40 | . 7 3 9 . 5 5 5 1 5 . . . . . Wheel . | . . . . . . . . . . . . . . . Hover 7 | . . . . . . . . . . . . . . 7 Flight 7 | . . . . . . . . . 4 . . 1 . 2 Utility 44 | . 4 1 1 . 8 7 3 1 7 1 . 4 . 7 Device 23 | . 1 1 1 . 6 4 1 . 2 . . 2 . 5 Storage 3 | . 2 . . . . . . . 1 . . . . . Processor 9 | . 1 . . . . 2 2 . 3 . . 1 . . Hackware 6 | . . . . . . . . 1 1 1 . 1 . 2 Protection 3 | . . . . . 2 1 . . . . . . . . Artifact . | . . . . . . . . . . . . . . . Weapon 36 | . 5 3 4 . 2 4 2 . 4 1 . 7 1 3 Energy Gun 7 | . 1 1 2 . 1 1 . . 1 . . . . . Energy Cannon 1 | . . . . . . . . . . . . . . 1 Ballistic Gun 8 | . 2 1 . . . 2 1 . 2 . . . . . Ballistic Cannon 6 | . 2 1 1 . 1 . . . 1 . . . . . Launcher 1 | . . . . . . . 1 . . . . . . . Special Weapon 1 | . . . . . . . . . . . . 1 . . Impact Weapon 1 | . . . 1 . . . . . . . . . . . Slashing Weapon 8 | . . . . . . 1 . . . 1 . 4 1 1 Piercing Weapon 3 | . . . . . . . . . . . . 2 . 1 Special Melee Weapon . | . . . . . . . . . . . . . . . Unidentified Prototypes 4 | . . . . . 1 1 . . 1 . . . . 1 Parts Lost 72 | . 1 3 8 . 2 15 12 1 3 1 . 10 . 16 Power 13 | . . 1 2 . . 1 4 . 1 . . 2 . 2 Propulsion 21 | . . 1 3 . . 4 2 . 1 . . 3 . 7 Utility 21 | . . . 1 . 1 6 3 1 . 1 . 3 . 5 Weapon 17 | . 1 1 2 . 1 4 3 . 1 . . 2 . 2 Highest Loss Streak 16 | . 1 3 6 . 1 7 5 1 2 1 . 10 . 16 To Critical Strikes 1 | . . . . . . . 1 . . . . . . . Average Slot Usage (%) 82 | . 98 88 91 100 90 82 54 66 90 79 82 84 39 74 Engine 5 | . 11 6 10 11 1 3 5 6 1 . . 1 . 2 Core 3 | . 2 4 . . 5 2 1 . 8 11 11 8 . 3 Reactor 1 | . . . . . 7 4 . . . . . . . . Leg 25 | . 27 33 42 44 30 25 21 21 33 . . . . . Flight 3 | . . . . . . . . . . 23 23 22 11 9 Device 7 | . 1 7 5 11 18 14 3 6 7 9 5 4 . 9 Storage 7 | . 14 11 11 11 7 6 6 6 5 5 5 5 5 4 Processor 6 | . 11 2 . . . 1 9 20 17 11 11 14 11 9 Hackware 2 | . . . . . . . . 4 5 8 11 12 5 13 Protection 1 | . . . . . 2 7 . . . . . . . . Energy Gun 4 | . 2 14 9 11 6 1 . . . . . . . . Ballistic Gun 3 | . 13 5 3 . . 5 5 . 4 5 5 2 . . Ballistic Cannon 4 | . 11 2 7 11 7 3 . . . . . . . . Slashing Weapon 1 | . . . . . . 1 . . . 1 5 6 3 3 Naked Turns . | . . . . . . . . . . . . . . . Heaviest Build 67 | 13 33 34 35 35 57 67 58 40 57 39 33 36 12 37 Greatest Support 100 | 20 26 46 49 49 80 80 74 65 100 36 36 36 10 42 Greatest Overweight (x) 3 | . 1 2 1 . 1 1 1 . . 1 . . 1 3 Average Overweight (x) . | . . . . . . . . . . . . . . . Largest Inventory Capacity 15 | . 15 15 15 15 15 15 15 15 15 10 10 10 10 10 Average Capacity 13 | . 11 15 15 15 15 15 15 15 14 10 10 10 10 9 Most Carried 15 | . 13 15 15 15 15 15 15 15 15 10 10 10 10 10 Average Carried 12 | . 9 12 14 15 14 14 13 14 13 9 9 9 9 7 Final Capacity 15 | 8 15 15 15 15 15 15 15 15 10 10 10 10 10 5 Final Carried 15 | 6 12 15 15 15 15 15 15 13 7 9 10 9 10 5 Class Distribution -------------------- 67% | Mutant 14% | Scavenger-Mutant 9% | Hacker-Sprinter 4% | Hacker-Gladiator Dominant Class ---------------- Mutant | -10/Materials Mutant | -9/Materials Mutant | -9/Storage Mutant | -9/Recycling Mutant | -7/Factory Mutant | -6/Factory Mutant | -6/Lower Caves Scavenger-Mutant | -6/Lower Caves Scavenger-Mutant | -5/Factory Hacker-Sprinter | -5/Upper Caves Hacker-Sprinter | -5/Upper Caves Hacker-Sprinter | -5/Warlord Mutant | -4/Proximity Caves Hacker-Gladiator | -4/Factory Resources | -11 -10 -9 -9 -9 -7 -6 -6 -6 -5 -5 -5 -5 -4 -4 ----------- Run | Yrd Mat Mat Sto Rec Fac Fac Low Low Fac Upp Upp War Pro Fac Matter Collected 2503 | 200 316 70 367 28 121 317 465 . 170 84 75 196 10 84 Remotely . | . . . . . . . . . . . . . . . Salvage Created 2696 | . 402 239 556 . 387 363 88 . 347 57 . . 173 84 Parts 138 | . 27 20 28 . 26 15 2 . 11 5 . . . 4 Haulers Intercepted 2 | . 1 1 . . . . . . . . . . . . Recyclers Shooed . | . . . . . . . . . . . . . . . Parts Field Recycled . | . . . . . . . . . . . . . . . Retrieved Matter . | . . . . . . . . . . . . . . . Parts Self-Destructed 9 | . . . . . . . 5 1 . 3 . . . . Prevented . | . . . . . . . . . . . . . . . Kills | -11 -10 -9 -9 -9 -7 -6 -6 -6 -5 -5 -5 -5 -4 -4 ------- Run | Yrd Mat Mat Sto Rec Fac Fac Low Low Fac Upp Upp War Pro Fac Combat Hostiles Destroyed 57 | . 10 7 10 . 14 9 2 . 3 1 . . . 1 Melee 6 | . . . . . . 5 . . . . . . . 1 Guns 26 | . 5 6 5 . 3 4 2 . . 1 . . . . Cannons 21 | . 5 1 5 . 9 . . . 1 . . . . . AOE 3 | . . . . . 2 . . . 1 . . . . . Classes Destroyed 12 | . 3 1 4 . 1 . 1 . 2 . . . . . Worker 4 | . . . 1 . . 3 . . . . . . . . Builder 1 | . . . . . . . . . 1 . . . . . Hauler 2 | . 1 1 . . . . . . . . . . . . Recycler 3 | . . . 2 . . . . . 1 . . . . . Operator 2 | . . . 1 . 1 . . . . . . . . . Watcher 3 | . . . 1 . . . . . 2 . . . . . Swarmer 16 | . 2 4 . . 6 4 . . . . . . . . Grunt 26 | . 8 . 8 . 6 4 . . . . . . . . Sentry 8 | . . 3 2 . . 1 . . 1 . . . . 1 Hunter 3 | . . . . . . . . . 2 1 . . . . Programmer 2 | . . . . . 2 . . . . . . . . . Thug 1 | . . . . . . . 1 . . . . . . . Butcher 1 | . . . . . . . 1 . . . . . . . Best Kill Streak 7 | . 4 3 7 . 4 5 2 . 5 1 . . . 1 Combat Bots Only 5 | . 4 3 5 . 4 2 2 . 2 1 . . . 1 Max Kills in Single Turn 3 | . 1 1 1 . 3 1 1 . 2 1 . . . 1 Gunslinging . | . . . . . . . . . . . . . . . Exploded 2 | . . . . . 2 . . . 1 . . . . . Melee 1 | . . . . . . 1 . . . . . . . 1 Uniques/NPCs Destroyed . | . . . . . . . . . . . . . . . Combat | -11 -10 -9 -9 -9 -7 -6 -6 -6 -5 -5 -5 -5 -4 -4 -------- Run | Yrd Mat Mat Sto Rec Fac Fac Low Low Fac Upp Upp War Pro Fac Hostile Shots Fired 924 | . 66 77 89 . 74 187 109 13 34 18 4 80 . 173 Missed 284 | . 14 25 23 . 23 59 39 6 11 5 2 25 . 52 Damage Taken 11034 | . 651 620 930 . 841 2035 1453 123 485 259 39 1274 . 2324 Core 2842 | . 107 125 172 . 43 104 362 . 69 45 . 646 . 1169 Absorbed by Shields . | . . . . . . . . . . . . . . . Redirected to Shielding 50 | . . . . . 50 . . . . . . . . . Ignored by Resistances 126 | . . . . . . . . . . . . . . 126 Regen/Repaired (Parts) 69 | . . . . . . . . . . . . 69 . . Core Remaining (%) 57 | 100 57 . . 25 93 . . 45 . . . . 24 . Volleys Fired 221 | . 45 25 36 1 31 37 18 . 18 6 . . . 4 Largest 2 | . 2 2 2 2 2 2 1 . 2 1 . . . 1 Hottest 130 | . 104 130 95 95 113 113 23 . 117 33 . . . 50 Shots Fired 366 | . 88 50 61 3 56 57 17 . 24 6 . . . 4 Gun 255 | . 65 48 43 1 25 36 17 . 14 6 . . . . Cannon 111 | . 23 2 18 2 31 21 . . 10 . . . . 4 Launcher . | . . . . . . . . . . . . . . . Special . | . . . . . . . . . . . . . . . Kinetic 239 | . 85 11 30 2 31 43 17 . 14 6 . . . . Thermal 113 | . 3 39 31 1 25 14 . . . . . . . . Explosive . | . . . . . . . . . . . . . . . Electromagnetic 10 | . . . . . . . . . 10 . . . . . Entropic 4 | . . . . . . . . . . . . . . 4 Robot Hit Streak 14 | . 6 11 9 . 14 12 3 . 5 3 . . . 4 Robot Miss Streak 4 | . 4 4 3 2 3 4 2 . 2 1 . . . 1 Penetration Max . | . . . . . . . . . . . . . . . Secondary Targets 2 | . 1 1 . . . . . . . . . . . . Max Gunslinging Chain 1 | . 1 1 . . . . . . . . . . . . Shots Hit Robots 255 | . 48 29 44 . 37 45 10 . 16 5 . 3 4 14 Core Hits 114 | . 20 10 19 . 19 24 5 . 8 3 . . 1 5 Critical Kills 1 | . . . . . . . . . . 1 . . . . Critical Parts Destroyed 1 | . . . . . . . . . 1 . . . . . Critical Strikes 18 | . . 2 5 . 3 2 . . 3 1 . . . 2 Burn 5 | . . 2 3 . . . . . . . . . . . Destroy 2 | . . . . . . . . . 1 1 . . . . Blast 9 | . . . 2 . 3 2 . . 2 . . . . . Sever 1 | . . . . . . . . . . . . . . 1 Impale 1 | . . . . . . . . . . . . . . 1 Melee Attacks 52 | . . . 1 . . 9 . . . . . 5 4 33 Impact 1 | . . . 1 . . . . . . . . . . . Slashing 23 | . . . . . . 9 . . . . . 5 4 5 Piercing 28 | . . . . . . . . . . . . . . 28 Sneak Attacks 3 | . . . . . . 3 . . . . . . . . Combat Hostiles . | . . . . . . . . . . . . . . . Follow-up Attacks 4 | . . . . . . . . . . . . . . 4 Damage Inflicted 6176 | . 604 470 848 10 1217 1229 192 . 559 93 . 124 277 553 Guns 2431 | . 368 431 528 . 275 413 164 . 159 93 . . . . Cannons 1977 | . 236 39 317 . 686 304 . . 180 . . . . 215 Explosions 476 | . . . . . 256 . . . 220 . . . . . Melee 1140 | . . . . . . 407 . . . . . 118 277 338 Ramming 152 | . . . 3 10 . 105 28 . . . . 6 . . Kinetic 2958 | . 557 175 486 . 686 556 164 . 241 93 . . . . Thermal 1393 | . 47 295 359 . 531 161 . . . . . . . . Explosive 220 | . . . . . . . . . 220 . . . . . Electromagnetic 98 | . . . . . . . . . 98 . . . . . Impact . | . . . . . . . . . . . . . . . Slashing 911 | . . . . . . 407 . . . . . 118 277 109 Piercing 229 | . . . . . . . . . . . . . . 229 Entropic 215 | . . . . . . . . . . . . . . 215 Highest Corruption 30 | . . . 2 2 1 11 30 30 1 1 1 1 . 4 Average Corruption 8 | . . . 1 2 1 7 25 30 1 1 1 1 . 2 Corruption Purged . | . . . . . . . . . . . . . . . Corruption Blocked 11 | . . . . . . . . . . . . . . 11 Effects 72 | . . . 8 8 . 18 34 2 1 . 1 . . . Message Errors 13 | . . . 1 2 . 2 8 . . . . . . . Matter Fused 18 | . . . 2 2 . 6 8 . . . . . . . Heat Flow Errors 9 | . . . 2 2 . 1 3 . 1 . . . . . Energy Discharges 11 | . . . 1 . . 3 5 1 . . 1 . . . Parts Rejected 1 | . . . . . . . 1 . . . . . . . Parts Fused 2 | . . . . . . 1 1 . . . . . . . Data Loss (minor) 8 | . . . 1 . . 2 4 1 . . . . . . Data Loss (major) 4 | . . . 1 . . 1 2 . . . . . . . Misfires 1 | . . . . 1 . . . . . . . . . . Alerts 1 | . . . . 1 . . . . . . . . . . Misdirections 1 | . . . . . . . 1 . . . . . . . Weapon Failures 3 | . . . . . . 2 1 . . . . . . . Overload Shots . | . . . . . . . . . . . . . . . Overflow Damage 394 | . . . 5 . 144 19 . . 43 . . 3 141 39 Projectiles 96 | . . . 5 . 11 1 . . 40 . . . . 39 Explosions 136 | . . . . . 133 . . . 3 . . . . . Melee 162 | . . . . . . 18 . . . . . 3 141 . Knockbacks 11 | . 1 . 2 . 5 3 . . . . . . . . Impact . | . . . . . . . . . . . . . . . Kinetic 11 | . 1 . 2 . 5 3 . . . . . . . . Secondary . | . . . . . . . . . . . . . . . Self-Inflicted Damage 108 | . . . . . 56 . . . 50 . . 2 . . Shots 2 | . . . . . 1 . . . 1 . . . . . Rammed 3 | . . . . . . . . . . . . 2 . 1 Targets Rammed 28 | . . . 1 2 . 13 9 . . . . 2 . 1 Kicked 25 | . . . 1 2 . 13 9 . . . . . . . Crushed . | . . . . . . . . . . . . . . . Highest Temperature 420 | . 144 352 336 186 420 259 255 . 178 . . 9 . 124 Average Temperature 93 | . 33 160 92 65 227 82 79 . 139 . . 9 . 56 Received Heat Transfer 2892 | . 354 135 405 . 243 672 468 . 36 . 21 153 . 405 Effects 8 | . . . 4 . 2 . 2 . . . . . . . Shutdowns 1 | . . . . . 1 . . . . . . . . . Energy Bleed 3 | . . . 2 . 1 . . . . . . . . . Interference 3 | . . . 1 . . . 2 . . . . . . . Damage (minor) 1 | . . . 1 . . . . . . . . . . . Siege Activations . | . . . . . . . . . . . . . . . Robots Corrupted 1 | . . . . . . . . . 1 . . . . . Combat Hostiles 1 | . . . . . . . . . 1 . . . . . Parts Fried 1 | . . . . . . . . . 1 . . . . . Impact Corruptions . | . . . . . . . . . . . . . . . Robots Melted . | . . . . . . . . . . . . . . . Combat Hostiles . | . . . . . . . . . . . . . . . Parts Melted 2 | . . 1 1 . . . . . . . . . . . Heat Transferred 3023 | . 111 851 999 . 692 370 . . . . . . . . Parts Sabotaged . | . . . . . . . . . . . . . . . Parts Stolen . | . . . . . . . . . . . . . . . Parts Stripped . | . . . . . . . . . . . . . . . Power Chain Reactions . | . . . . . . . . . . . . . . . Alert | -11 -10 -9 -9 -9 -7 -6 -6 -6 -5 -5 -5 -5 -4 -4 ------- Run | Yrd Mat Mat Sto Rec Fac Fac Low Low Fac Upp Upp War Pro Fac Peak Influence 475 | . 211 233 475 126 282 378 . . 200 . . . . 110 Initial 137 | . . 45 98 126 8 137 . . 12 . . . . 6 Average 121 | . 82 124 258 81 81 218 . . 28 . . . . 41 Maximum Alert Level 2 | . 1 1 2 . 1 1 . . 1 . . . . . Low Security (%) 83 | . 96 86 45 100 96 62 . . 94 . . . . 100 Level 1 12 | . 3 13 28 . 3 37 . . 5 . . . . . Level 2 4 | . . . 25 . . . . . . . . . . . Level 3 . | . . . . . . . . . . . . . . . Level 4 . | . . . . . . . . . . . . . . . Level 5 . | . . . . . . . . . . . . . . . High Security . | . . . . . . . . . . . . . . . Max Security . | . . . . . . . . . . . . . . . Squads Dispatched 16 | . 1 . 3 . 5 3 . . 2 . . . . 2 Investigation 8 | . . . 2 . 2 2 . . 1 . . . . 1 Extermination 4 | . . . . . 2 . . . 1 . . . . 1 Reinforcement 4 | . 1 . 1 . 1 1 . . . . . . . . Assault . | . . . . . . . . . . . . . . . Garrison . | . . . . . . . . . . . . . . . Intercept . | . . . . . . . . . . . . . . . Searches Triggered . | . . . . . . . . . . . . . . . Construction Impeded . | . . . . . . . . . . . . . . . Haulers Reinforced . | . . . . . . . . . . . . . . . Active Scanning Responses . | . . . . . . . . . . . . . . . Cargo Convoy Interrupts . | . . . . . . . . . . . . . . . Stealth | -11 -10 -9 -9 -9 -7 -6 -6 -6 -5 -5 -5 -5 -4 -4 --------- Run | Yrd Mat Mat Sto Rec Fac Fac Low Low Fac Upp Upp War Pro Fac Distress Signals 3 | . . . . . . 1 . . 2 . . . . . Communications Jammed . | . . . . . . . . . . . . . . . Distress Signals . | . . . . . . . . . . . . . . . Times Spotted 165 | . 16 7 24 1 21 23 10 10 9 2 8 22 . 12 Peak Tracking Total 13 | . 3 4 5 1 5 6 4 5 2 1 8 13 . 8 Tactical Retreats 15 | . 1 . . . 1 6 4 1 . 1 . . . 1 Traps | -11 -10 -9 -9 -9 -7 -6 -6 -6 -5 -5 -5 -5 -4 -4 ------- Run | Yrd Mat Mat Sto Rec Fac Fac Low Low Fac Upp Upp War Pro Fac Traps Triggered 5 | . 1 . 2 . . 1 . . . . . . . 1 Indirectly . | . . . . . . . . . . . . . . . Trap Hack Attempts . | . . . . . . . . . . . . . . . Triggered . | . . . . . . . . . . . . . . . Disarmed . | . . . . . . . . . . . . . . . Reprogrammed . | . . . . . . . . . . . . . . . Reused . | . . . . . . . . . . . . . . . Traps Extracted . | . . . . . . . . . . . . . . . Installed . | . . . . . . . . . . . . . . . Triggered 13 | . . . . . . . . . . . . 13 . . Machines | -11 -10 -9 -9 -9 -7 -6 -6 -6 -5 -5 -5 -5 -4 -4 ---------- Run | Yrd Mat Mat Sto Rec Fac Fac Low Low Fac Upp Upp War Pro Fac Machines Disabled 9 | . 2 . 2 . 2 . . . 3 . . . . . Max in Single Turn 2 | . 1 . 1 . 2 . . . 1 . . . . . Garrison Access 2 | . . . . . . 1 . . 1 . . . . . Machines Repaired . | . . . . . . . . . . . . . . . Machines Dismantled . | . . . . . . . . . . . . . . . Machines Sabotaged . | . . . . . . . . . . . . . . . Overloaded Fab Kills . | . . . . . . . . . . . . . . . Hacking | -11 -10 -9 -9 -9 -7 -6 -6 -6 -5 -5 -5 -5 -4 -4 --------- Run | Yrd Mat Mat Sto Rec Fac Fac Low Low Fac Upp Upp War Pro Fac Machines Accessed 25 | . 5 . 5 . 3 5 . . 2 . . 3 . 2 Terminals 14 | . 5 . 5 . 2 1 . . . . . . . 1 Fabricators 4 | . . . . . 1 2 . . 1 . . . . . Repair Stations . | . . . . . . . . . . . . . . . Recycling Units . | . . . . . . . . . . . . . . . Scanalyzers 2 | . . . . . . 1 . . . . . . . 1 Garrison Access 2 | . . . . . . 1 . . 1 . . . . . Total Hacks 57 | . 16 . 8 . 6 9 . . 6 . . 7 . 5 Successful 30 | . 7 . 4 . 2 4 . . 1 . . 7 . 5 Failed 27 | . 9 . 4 . 4 5 . . 5 . . . . . Catastrophic 6 | . . . 1 . 1 2 . . 2 . . . . . Database Lockouts . | . . . . . . . . . . . . . . . Manual 25 | . 10 . 7 . 3 2 . . . . . 2 . 1 Terminals 34 | . 16 . 8 . 5 2 . . . . . . . 3 Fabricators 9 | . . . . . 1 3 . . 5 . . . . . Repair Stations . | . . . . . . . . . . . . . . . Recycling Units . | . . . . . . . . . . . . . . . Scanalyzers 5 | . . . . . . 3 . . . . . . . 2 Garrison Access 2 | . . . . . . 1 . . 1 . . . . . Terminal Hacks 13 | . 2 . 2 . . . . . . . . 7 . 2 Record 1 | . . . . . . . . . . . . . . 1 Prototype ID Bank 6 | . 1 . . . . . . . . . . 5 . . Open Door 3 | . . . 1 . . . . . . . . 2 . . Branch Access Points 1 | . . . . . . . . . . . . . . 1 Terminal Index 2 | . 1 . 1 . . . . . . . . . . . Fabricator Hacks 2 | . . . . . 1 1 . . . . . . . . Network Status 1 | . . . . . . 1 . . . . . . . . Build 1 | . . . . . 1 . . . . . . . . . Repair Station Hacks . | . . . . . . . . . . . . . . . Recycling Unit Hacks . | . . . . . . . . . . . . . . . Scanalyzer 4 | . . . . . . 2 . . . . . . . 2 Insert Component 2 | . . . . . . 1 . . . . . . . 1 Analyze 2 | . . . . . . 1 . . . . . . . 1 Garrison Access Hacks 2 | . . . . . . 1 . . 1 . . . . . Seal Access 2 | . . . . . . 1 . . 1 . . . . . Unauthorized Hacks 9 | . 5 . 2 . 1 . . . . . . . . 1 Terminals 9 | . 5 . 2 . 1 . . . . . . . . 1 Botnet 9 | . 5 . 2 . 1 . . . . . . . . 1 Fabricators . | . . . . . . . . . . . . . . . Repair Stations . | . . . . . . . . . . . . . . . Recycling Units . | . . . . . . . . . . . . . . . Scanalyzers . | . . . . . . . . . . . . . . . Garrison Access . | . . . . . . . . . . . . . . . Data Cores Recovered 1 | . . . 1 . . . . . . . . . . . Used . | . . . . . . . . . . . . . . . Hacking Detections 16 | . 4 . 3 . 3 3 . . 1 . . . . 2 Full Trace Events 9 | . 1 . 2 . 2 2 . . 1 . . . . 1 Feedback Events 1 | . . . . . . 1 . . . . . . . . Corruption 1 | . . . . . . 1 . . . . . . . . Feedback Blocked . | . . . . . . . . . . . . . . . Robot Schematics Acquired . | . . . . . . . . . . . . . . . Robots Built . | . . . . . . . . . . . . . . . Authchips . | . . . . . . . . . . . . . . . Time . | . . . . . . . . . . . . . . . Total Robot Build Rating . | . . . . . . . . . . . . . . . Part Schematics Acquired 2 | . . . . . . 1 . . . . . . . 1 Parts Built 1 | . . . . . 1 . . . . . . . . . Authchips . | . . . . . . . . . . . . . . . Time 84 | . . . . . 84 . . . . . . . . . Total Part Build Rating 4 | . . . . . 4 . . . . . . . . . Parts Repaired . | . . . . . . . . . . . . . . . Time . | . . . . . . . . . . . . . . . Parts Recycled . | . . . . . . . . . . . . . . . Recycled Matter . | . . . . . . . . . . . . . . . Retrieved Matter . | . . . . . . . . . . . . . . . Retrieved Components . | . . . . . . . . . . . . . . . Parts Scanalyzed 2 | . . . . . . 1 . . . . . . . 1 Part Schematics Acquired 2 | . . . . . . 1 . . . . . . . 1 Parts Damaged . | . . . . . . . . . . . . . . . Bothacking | -11 -10 -9 -9 -9 -7 -6 -6 -6 -5 -5 -5 -5 -4 -4 ------------ Run | Yrd Mat Mat Sto Rec Fac Fac Low Low Fac Upp Upp War Pro Fac Used RIF Installer . | . . . . . . . . . . . . . . . Robots Hacked . | . . . . . . . . . . . . . . . Non-combat . | . . . . . . . . . . . . . . . Combat . | . . . . . . . . . . . . . . . Robot Hacks Applied . | . . . . . . . . . . . . . . . Relay Couplers Released . | . . . . . . . . . . . . . . . Fabnet Peak Effective % . | . . . . . . . . . . . . . . . Robots Rewired . | . . . . . . . . . . . . . . . Allies Hacked . | . . . . . . . . . . . . . . . Hacks Repelled . | . . . . . . . . . . . . . . . Allies | -11 -10 -9 -9 -9 -7 -6 -6 -6 -5 -5 -5 -5 -4 -4 -------- Run | Yrd Mat Mat Sto Rec Fac Fac Low Low Fac Upp Upp War Pro Fac Total Allies 12 | . . . 12 . . . . . . . . . . . Largest Group 12 | . . . 12 4 . . . . . . . . . . Highest-Rated Group 204 | . . . 204 124 . . . . . . . . . . Highest-Rated Ally 100 | . . . 100 100 . . . . . . . . . . Total Orders 2 | . . . . 2 . . . . . . . . . . ROAM 1 | . . . . 1 . . . . . . . . . . AID 1 | . . . . 1 . . . . . . . . . . Ally Attacks 30 | . . . 27 3 . . . . . . . . . . Total Damage 808 | . . . 773 35 . . . . . . . . . . Kills 12 | . . . 11 1 . . . . . . . . . . Allies Corrupted . | . . . . . . . . . . . . . . . Allies Melted . | . . . . . . . . . . . . . . . Intel | -11 -10 -9 -9 -9 -7 -6 -6 -6 -5 -5 -5 -5 -4 -4 ------- Run | Yrd Mat Mat Sto Rec Fac Fac Low Low Fac Upp Upp War Pro Fac Robot Analysis Total . | . . . . . . . . . . . . . . . Derelict Logs Recovered 5 | . . . . . . . 1 . . 1 . . 3 . Drone Launches . | . . . . . . . . . . . . . . . Drone Recoveries . | . . . . . . . . . . . . . . . Exploration | -11 -10 -9 -9 -9 -7 -6 -6 -6 -5 -5 -5 -5 -4 -4 ------------- Run | Yrd Mat Mat Sto Rec Fac Fac Low Low Fac Upp Upp War Pro Fac Turns Passed 6593 | . 613 260 828 658 673 642 648 51 728 156 63 449 395 429 Spaces Moved 6054 | 1 305 104 553 530 380 317 456 39 567 427 198 1095 514 568 Core 1 | . . . . . . . . . . . . . . 1 Treads . | . . . . . . . . . . . . . . . Legs 3221 | 1 305 104 553 530 380 317 456 39 536 . . . . . Wheels . | . . . . . . . . . . . . . . . Hover 318 | . . . . . . . . . . . . . . 318 Flight 2514 | . . . . . . . . . 31 427 198 1095 514 249 Fastest Speed 31 | 120 120 120 120 120 120 126 123 122 31 31 31 31 37 34 Average Speed 86 | 120 143 141 120 120 127 130 126 122 111 31 31 31 74 46 Slowest Speed 260 | 120 190 260 190 120 190 200 200 123 122 106 31 37 107 200 Overloaded Moves . | . . . . . . . . . . . . . . . Propulsion Burnouts . | . . . . . . . . . . . . . . . Robots Hopped 4 | . . . . . . . . . 4 . . . . . Cave-ins Triggered 1 | . . . . . . 1 . . . . . . . . Exploration Rate (%) 44 | 1 71 13 85 93 10 10 75 10 8 63 47 95 75 7 Regions Visited 14 Branch Regions 8 Pre-discovered Areas 2 | . . . 1 . . . . . . . . . 1 . Known Exits Taken 7 | . . . . . . 1 1 . 1 1 1 1 1 . Unknown Exits Taken 7 | 1 1 1 1 1 1 . . 1 . . . . . . Scrap Searched 8 | . . . . . . . . 1 . 2 1 . 4 . Spaces Dug 14 | . . . . . . . . . . . . 1 . 13 Terrain Destroyed 59 | . 1 . 1 . 7 5 . . 29 1 . 1 . 14 Melee 14 | . . . . . . . . . . . . 1 . 13 Projectile 12 | . 1 . 1 . 1 5 . . 2 1 . . . 1 AOE 33 | . . . . . 6 . . . 27 . . . . . Terrain Rammed . | . . . . . . . . . . . . . . . Walls Destroyed . | . . . . . . . . . . . . . . . Machines Disabled . | . . . . . . . . . . . . . . . Actions | -11 -10 -9 -9 -9 -7 -6 -6 -6 -5 -5 -5 -5 -4 -4 --------- Run | Yrd Mat Mat Sto Rec Fac Fac Low Low Fac Upp Upp War Pro Fac Total 6996 | . 407 167 655 550 519 474 505 41 639 442 198 1200 520 679 Wait 307 | . 11 21 20 16 64 55 5 . 7 . . 55 1 52 Move 6033 | . 304 103 552 529 379 317 455 38 558 426 197 1094 513 568 Hop 4 | . . . . . . . . . 4 . . . . . Pick Up 71 | . 11 6 10 . 8 11 1 . 7 4 1 9 1 2 Fast Attach 71 | . 6 2 3 . 6 10 10 1 10 2 . 9 1 11 Attach 47 | . 1 6 5 . 4 6 3 2 10 . . 3 . 7 Detach 21 | . 1 3 . . 3 1 1 . 6 1 . 2 . 3 Swap 50 | . 10 1 13 1 8 5 2 . 3 . . 4 . 3 Drop 97 | . 18 . 14 1 16 11 1 . 16 3 . 17 . . Fire 221 | . 45 25 36 1 31 37 18 . 18 6 . . . 4 Melee 47 | . . . 1 . . 9 . . . . . 5 4 28 Ram 3 | . . . . . . . . . . . . 2 . 1 Kick 24 | . . . 1 2 . 12 9 . . . . . . . Crush . | . . . . . . . . . . . . . . . Escape Stasis . | . . . . . . . . . . . . . . . Rewire . | . . . . . . . . . . . . . . . Trap . | . . . . . . . . . . . . . . . Miscellaneous . | . . . . . . . . . . . . . . . Route ------- -11/Scrapyard -10/Materials (discovered 2 exits: [*Mat x2]) -9/Materials -9/Storage (discovered 2 exits: [*Mat] / [*Rec]) -9/Recycling -7/Factory -6/Factory -6/Lower Caves -6/Lower Caves -5/Factory -5/Upper Caves -5/Upper Caves (discovered 2 exits: *Fac / *War) -5/Warlord -4/Proximity Caves -4/Factory (discovered 5 exits: *Upp x2 / Ext x2 / Arm) History --------- Turn | Location | Event 1 | -11/Scrapyard | Discovered new exit (range 0) 1 | -11/Scrapyard | Entered Materials 324 | -10/Materials | Discovered new exit (range 8) 337 | -10/Materials | Build established: Mutant 574 | -10/Materials | Discovered new exit (range 7) 614 | -10/Materials | Entered another Materials area 614 | -9/Materials | Evolved 2 slots: Propulsion x2 763 | -9/Materials | Lost 3 parts (1p1n1w) 837 | -9/Materials | Discovered new exit (range 12) 874 | -9/Materials | Entered Storage 1143 | -9/Storage | Core integrity fell below 50% 1188 | -9/Storage | Lost 6 parts (1p3n2w) 1229 | -9/Storage | Discovered new exit (range 16) 1234 | -9/Storage | Met 01-MTF 1383 | -9/Storage | Learned location of Armory (-4) 1510 | -9/Storage | Discovered new exit (range 5) 1659 | -9/Storage | Assisted by bots powering up and referring to "LRC-V3" 1702 | -9/Storage | Entered Recycling 1702 | -9/Recycling | Accompanied by 4 allies (01-MTF) 1708 | -9/Recycling | 01-MTF left 1875 | -9/Recycling | Discovered new exit (range 5) 2360 | -9/Recycling | Entered Factory 2360 | -7/Factory | Evolved 4 slots: Power x1, Utility x3 2757 | -7/Factory | Fabricated Adv. ECM Suite (x1) 2981 | -7/Factory | Discovered new exit (range 8) 3033 | -7/Factory | Entered another Factory area 3033 | -6/Factory | Evolved 2 slots: Utility x2 3356 | -6/Factory | Crushed by falling debris 3356 | -6/Factory | System corruption reached 10% 3406 | -6/Factory | Lost 7 parts (1n3u3w) 3660 | -6/Factory | Discovered new exit (range 7) 3672 | -6/Factory | Identified exit to Lower Caves 3675 | -6/Factory | Entered Lower Caves 3702 | -6/Lower Caves | Lost 3 parts (1p1n1u) 3772 | -6/Lower Caves | Lost 5 parts (1n3u1w) 3792 | -6/Lower Caves | Identified exit to Lower Caves 4085 | -6/Lower Caves | Ambushed by wild Derelicts 4138 | -6/Lower Caves | Encountered a Warlord checkpoint 4139 | -6/Lower Caves | Lost 3 parts (2p1w) 4203 | -6/Lower Caves | Lost 5 allies 4303 | -6/Lower Caves | Core integrity fell below 50% 4312 | -6/Lower Caves | System corruption reached 30% 4323 | -6/Lower Caves | Entered another Lower Caves area 4359 | -6/Lower Caves | Discovered new exit (range 9) 4374 | -6/Lower Caves | Entered Factory 4374 | -5/Factory | Evolved 2 slots: Propulsion x2 4470 | -5/Factory | Build established: Scavenger-Mutant 5056 | -5/Factory | Discovered new exit (range 5) 5098 | -5/Factory | Identified exit to Upper Caves 5102 | -5/Factory | Entered Upper Caves 5140 | -5/Upper Caves | Spotted B-75 Beast 5254 | -5/Upper Caves | Discovered new exit (range 15) 5256 | -5/Upper Caves | Learned 4 Factory zone layouts 5258 | -5/Upper Caves | Identified exit to Upper Caves 5258 | -5/Upper Caves | Entered another Upper Caves area 5275 | -5/Upper Caves | Discovered new exit (range 6) 5277 | -5/Upper Caves | Identified exit to Factory 5320 | -5/Upper Caves | Discovered new exit (range 3) 5320 | -5/Upper Caves | Identified exit to Warlord 5321 | -5/Upper Caves | Entered Warlord 5332 | -5/Warlord | System corruption cleaned by Quarantine Array 5421 | -5/Warlord | Met Warlord 5439 | -5/Warlord | Received a Watcher feed algorithm from an ecstatic Tinkerer 5446 | -5/Warlord | Warlord's base attacked by MAIN.C 5479 | -5/Warlord | Build established: Hacker-Sprinter 5550 | -5/Warlord | Found Prototype Energy Cannon 5553 | -5/Warlord | Found Prototype Energy Cannon 5695 | -5/Warlord | Warlord forces counterattacked 5731 | -5/Warlord | Opened side exit 5746 | -5/Warlord | Spotted Executioner 5746 | -5/Warlord | Spotted Executioner 5756 | -5/Warlord | Core integrity fell below 50% 5768 | -5/Warlord | Discovered new exit (range 8) 5770 | -5/Warlord | Identified exit to Proximity Caves 5770 | -5/Warlord | Entered Proximity Caves 5772 | -4/Proximity Caves | Learned Research stockpile data 5786 | -4/Proximity Caves | Lost 10 parts (2p3n3u2w) 5854 | -4/Proximity Caves | Learned Research stockpile data 6036 | -4/Proximity Caves | Discovered exit to Factory (range 7) 6040 | -4/Proximity Caves | Learned location of Testing (-2) 6051 | -4/Proximity Caves | Build established: Mutant 6165 | -4/Proximity Caves | Entered Factory 6165 | -4/Factory | Evolved 2 slots: Utility x2 6280 | -4/Factory | Identified exit to Upper Caves 6280 | -4/Factory | Identified exit to Extension 6280 | -4/Factory | Identified exit to Armory 6537 | -4/Factory | Identified Vortex Cannon 6561 | -4/Factory | Core integrity fell below 50% 6577 | -4/Factory | Core integrity fell below 20% 6594 | -4/Factory | Destroyed by P-70 Sage with High-powered Shock Rifle Last Messages --------------- Adv. Thermal Shield destroyed. U-05 Engineer builds a Wall. Imp. Corruption Screen intercepted 1% system corruption. Imp. Corruption Screen expended. Adv. Cryofiber Web destroyed. Imp. Gyrokinetic Inverter destroyed. Acquired Imp. Linear Gravjet. Adv. Signal Interpreter destroyed. Critical hit (Burn: +37). Med. Storage Unit destroyed. Acquired Imp. Antigrav System. Critical hit (Burn: +37). Critical hit (Burn: +50). Imp. Antigrav System destroyed. Imp. Linear Gravjet destroyed. P-70 Sage resets G-67 Veteran, system corruption cleaned. Slammed into G-67 Veteran. Critical hit (Burn: +50). Map ----- +----------------------------------------------------+ | ?????????????????????????????????????????????????? | | ?????????????????????????????????????????????????? | | ?????????????????????????????????????????????????? | | ?????????????????????????????????????????????????? | | ????????????????????????? ???????????????????????? | | ????????????????????????? ???????????????????????? | | ????????????????????????? #??????????????????????? | | ????????????????????????? #??????????????????????? | | ????????????????????????? #??????????????????????? | | ????????????????????????? #??????????????????????? | | ???###########??????????? #??????????????????????? | | ???# ############ ###########????????????? | | #### ???????????? | | ???????????? | | ???????????? | | > ??????????? | | ??????????? | | ?????????? | | #### ??????????? | | ???# ####/######p ####??????????????? | | ???########### ## #?????????????????? | | ?????????????# ## #?????????????????? | | ###########??# ## #?????????????????? | | #??#""" "" ## R #?????????????????? | | #??#"""""" ## #?????????????????? | | """ """ #??#""""" ## @ #?????????????????? | | """ """ #??#""""" ## #?????????????????? | | """ """ ##?#"""""" ## #?????????????????? | | ##?#"""""" ## #?????????????????? | | """ """ ##?#"""""" ## #?????????????????? | | """ """ #??#"""""" ## #?????????????????? | | """ """ #??#"""""" ## #?????????????????? | | #??# ## #?????????????????? | | ##?# ## #?????????????????? | | "#?# ## #?????????????????? | | ############?# ## #?????????????????? | | #########"#??# ! ## #?????????????????? | | #??# ! ! ## #?????????????????? | | """ """" #??##########? #?????????????????? | | """ """" *#?????????????u ???????????????????? | | """ """" #????????????? ?????????????????????? | | """ """" ##?????????????????????????????????????? | | "#?????????????????????????????????????? | | """ """" ##?????????????????????????????????????? | | """ """" #??????????????????????????????????????? | | """ """" #??????????????????????????????????????? | | """ """" #??????????????????????????????????????? | | ##?????????????????????????????????????? | | "#?????????????????????????????????????? | | #####"###"##?????????????????????????????????????? | +----------------------------------------------------+ Best States ------------- Heat Dissipation 85 Coolant Potential 50 Energy Generation 34 Energy Capacity 525 Matter Stores 300 Matter Capacity 300 Sight Range 16 Robot Scan Range 15 Terrain Scan Density 85 ECM Strength 2 Power Amplification 30 Base Temperature (-) 200 Corruption Block 11 Armor Coverage 300 Resistance: TH 30 Propulsion Shielding 33 Melee Speed Boost 20 Evasion (%) 63 Targeting Accuracy 8 Melee Accuracy 10 Offensive Hacking 34 Defensive Hacking 11 Item Schematics ----------------- Imp. Flight Unit | -6/Factory | Scanalyzed Mak. Sword | -4/Factory | Scanalyzed Robot Schematics ------------------ None Fabricated ------------ Adv. ECM Suite | x1 | -7/Factory | Preloaded Alien Tech Used ----------------- None Achievements -------------- None Challenges ------------ None Game ------ Seed GyrokineticColdFlakker Manual? 0 Play Time 01:42:21 Cumulative 60.8 hours Start 2024.04.16 @ 09:09:11 End 2024.04.16 @ 11:15:24 Sessions 1 Manual Loads 0 Difficulty Rogue Special Mode None Game No. 133 Rogue 131 Adventurer 2 Explorer 0 Win Type - Total 0 Types 0/0/0/0/0/0/0/0/0 Lore% 39 Gallery% 43 Achievement% 33 Wizard Run 0 Options --------- Layout 2 ASCII 0 Keyboard 1 Movement Numpad Keybinds 1 Fullscreen 2 Font 24/Smallcaps Map View 50x44 Zoom Use 0% Tactical HUD 1 Map Filters NONE Filters NONE Steam 1 RUN: 9f58c6c3-881b-4033-93f0-df1b5e07b8a6